fUST/lending_fUST_20260605
["ID","MTS","AMOUNT","RATE_DAILY","PERIOD"]
[424110152,1780597846000,-500.0,0.0001452,2]
[424110222,1780597846000,-500.0,0.0001452,2]
[424110243,1780597846000,-500.0,0.0001452,2]
[424110193,1780597846000,-500.0,0.0001452,2]
[424110271,1780597846000,-500.0,0.00014794,2]
[424110198,1780597846000,-356.62382291,0.0001452,2]
[424110157,1780597846000,-500.0,0.0001452,2]
[424110285,1780597846000,-500.0,0.00014794,2]
[424110230,1780597846000,-500.0,0.0001452,2]
[424110278,1780597846000,-607.33909288,0.00014794,2]
[424110231,1780597846000,-1316.08,0.0001452,2]
[424110280,1780597846000,-358.19626169,0.00014794,2]
[424110237,1780597846000,-500.0,0.0001452,2]
[424110291,1780597846000,-996.15,0.00014794,2]
[424110234,1780597846000,-500.0,0.0001452,2]
[424110267,1780597846000,-500.0,0.00014794,2]
[424110304,1780597847000,-500.0,0.00014794,2]
[424110326,1780597847000,-162.38071901,0.00014816,2]
[424110312,1780597847000,-500.0,0.00014794,2]
[424110345,1780597847000,-500.0,0.00015068,2]
[424110374,1780597847000,-500.0,0.00015068,2]
[424110373,1780597847000,-500.0,0.00015068,2]
[424110320,1780597847000,-500.0,0.00014794,2]
[424110331,1780597847000,-605.56285128,0.00015,2]
[424110361,1780597847000,-500.0,0.00015068,2]
[424110318,1780597847000,-540.73,0.00014794,2]
[424110336,1780597847000,-474.85908908,0.00015068,2]
[424110370,1780597847000,-651.11,0.00015068,2]
[424110369,1780597847000,-500.0,0.00015068,2]
[424110335,1780597847000,-500.0,0.00015068,2]
[424110338,1780597847000,-500.0,0.00015068,2]
[424110359,1780597847000,-996.15,0.00015068,2]
[424110298,1780597847000,-3182.26,0.00014794,2]
[424110301,1780597847000,-500.0,0.00014794,2]
[424110303,1780597847000,-500.0,0.00014794,2]
[424110314,1780597847000,-787.9,0.00014794,2]
[424110306,1780597847000,-1714.78,0.00014794,2]
[424110333,1780597847000,-1428.20913596,0.00015,2]
[424110332,1780597847000,-4016.44353375,0.00015,2]
[424110355,1780597847000,-500.0,0.00015068,2]
[424110315,1780597847000,-500.0,0.00014794,2]
[424110339,1780597847000,-500.0,0.00015068,2]
[424110368,1780597847000,-500.0,0.00015068,2]
[424110297,1780597847000,-500.0,0.00014794,2]
[424110324,1780597847000,-1196.37,0.00014794,2]
[424110340,1780597847000,-500.0,0.00015068,2]
[424110360,1780597847000,-606.2,0.00015068,2]
[424110308,1780597847000,-500.0,0.00014794,2]
[424110311,1780597847000,-500.0,0.00014794,2]
[424110309,1780597847000,-500.0,0.00014794,2]
[424110322,1780597847000,-500.0,0.00014794,2]
[424110343,1780597847000,-500.0,0.00015068,2]
[424110348,1780597847000,-500.0,0.00015068,2]
[424110321,1780597847000,-500.0,0.00014794,2]
[424110353,1780597847000,-500.0,0.00015068,2]
[424110357,1780597847000,-501.20120435,0.00015068,2]
[424110371,1780597847000,-1714.78,0.00015068,2]
[424110310,1780597847000,-500.0,0.00014794,2]
[424110317,1780597847000,-500.0,0.00014794,2]
[424110330,1780597847000,-5146.78569876,0.00014968,2]
[424110341,1780597847000,-500.0,0.00015068,2]
[424110350,1780597847000,-151.0,0.00015068,2]
[424110349,1780597847000,-500.0,0.00015068,2]
[424110363,1780597847000,-3182.26,0.00015068,2]
[424110307,1780597847000,-500.0,0.00014794,2]
[424110352,1780597847000,-277.56,0.00015068,2]
[424110302,1780597847000,-500.0,0.00014794,2]
[424110313,1780597847000,-1316.08,0.00014794,2]
[424110337,1780597847000,-426.95036709,0.00015068,2]
[424110375,1780597847000,-637.63239537,0.00015068,2]
[424110379,1780597847000,-787.9,0.00015068,2]
[424110377,1780597847000,-1316.08,0.00015068,2]
[424110390,1780597847000,-1428.20913596,0.000152,2]
[424110387,1780597847000,-500.0,0.00015068,2]
[424110392,1780597847000,-444.0,0.00015204,2]
[424110391,1780597847000,-185.0,0.00015204,2]
[424110393,1780597847000,-1428.20913596,0.000153,2]
[424110398,1780597847000,-1084.41,0.00015341,2]
[424110389,1780597847000,-607.625383,0.00015068,2]
[424110396,1780597847000,-1516.48,0.00015341,2]
[424110400,1780597847000,-1258.04,0.00015341,2]
[424110381,1780597847000,-530.56,0.00015068,2]
[424110394,1780597847000,-500.0,0.00015341,2]
[424110397,1780597847000,-231.24142281,0.00015341,2]
[424110384,1780597847000,-500.0,0.00015068,2]
[424110388,1780597847000,-1196.37,0.00015068,2]
[424110385,1780597847000,-411.2867518,0.00015068,2]
[424110386,1780597847000,-500.0,0.00015068,2]
[424110399,1780597847000,-713.0,0.00015341,2]
[424110380,1780597847000,-500.0,0.00015068,2]
[424110383,1780597847000,-500.0,0.00015068,2]
[424110334,1780597847000,-500.0,0.00015068,2]
[424110395,1780597847000,-500.0,0.00015341,2]
[424110376,1780597847000,-500.0,0.00015068,2]
[424110382,1780597847000,-500.0,0.00015068,2]
[424110366,1780597847000,-500.0,0.00015068,2]
[424110344,1780597847000,-500.0,0.00015068,2]
[424110378,1780597847000,-500.0,0.00015068,2]
[424110346,1780597847000,-500.0,0.00015068,2]
[424110351,1780597847000,-500.0,0.00015068,2]
[424110358,1780597847000,-500.0,0.00015068,2]
[424110305,1780597847000,-651.11,0.00014794,2]
[424110356,1780597847000,-500.0,0.00015068,2]
[424110365,1780597847000,-500.0,0.00015068,2]
[424110372,1780597847000,-500.0,0.00015068,2]
[424110319,1780597847000,-500.0,0.00014794,2]
[424110342,1780597847000,-500.0,0.00015068,2]
[424110316,1780597847000,-500.0,0.00014794,2]
[424110327,1780597847000,-500.0,0.00014816,2]
[424110328,1780597847000,-151.0,0.00014816,2]
[424110299,1780597847000,-944.64,0.00014794,2]
[424110325,1780597847000,-151.0,0.00014816,2]
[424110323,1780597847000,-500.0,0.00014794,2]
[424110362,1780597847000,-500.0,0.00015068,2]
[424110367,1780597847000,-500.0,0.00015068,2]
[424110300,1780597847000,-500.0,0.00014794,2]
[424110354,1780597847000,-387.5,0.00015068,2]
[424110347,1780597847000,-500.0,0.00015068,2]
[424110329,1780597847000,-605.56285128,0.000149,2]
[424110364,1780597847000,-944.64,0.00015068,2]
[424110437,1780597848000,-500.0,0.00015342,2]
[424110493,1780597848000,-500.0,0.0001589,2]
[424110408,1780597848000,-500.0,0.00015342,2]
[424110497,1780597848000,-425.6,0.0001589,2]
[424110490,1780597848000,-500.0,0.0001589,2]
[424110465,1780597848000,-500.0,0.00015616,2]
[424110510,1780597848000,-500.0,0.0001589,2]
[424110494,1780597848000,-500.0,0.0001589,2]
[424110482,1780597848000,-1196.37,0.00015616,2]
[424110434,1780597848000,-787.9,0.00015342,2]
[424110499,1780597848000,-3182.26,0.0001589,2]
[424110517,1780597848000,-505.74714309,0.00015912,2]
[424110406,1780597848000,-500.0,0.00015342,2]
[424110512,1780597848000,-500.0,0.0001589,2]
[424110444,1780597848000,-1428.20913596,0.000155,2]
[424110413,1780597848000,-187.63,0.00015342,2]
[424110456,1780597848000,-500.0,0.00015616,2]
[424110468,1780597848000,-1714.78,0.00015616,2]
[424110473,1780597848000,-1316.08,0.00015616,2]
[424110486,1780597848000,-500.0,0.0001589,2]
[424110518,1780597848000,-194.07646048,0.00016094,2]
[424110513,1780597848000,-500.0,0.0001589,2]
[424110411,1780597848000,-500.0,0.00015342,2]
[424110442,1780597848000,-500.0,0.00015364,2]
[424110443,1780597848000,-720.0,0.00015368,2]
[424110487,1780597848000,-500.0,0.0001589,2]
[424110500,1780597848000,-944.64,0.0001589,2]
[424110401,1780597848000,-500.0,0.00015342,2]
[424110505,1780597848000,-500.0,0.0001589,2]
[424110409,1780597848000,-500.0,0.00015342,2]
[424110484,1780597848000,-500.0,0.0001589,2]
[424110448,1780597848000,-327.8,0.00015616,2]
[424110459,1780597848000,-996.15,0.00015616,2]
[424110426,1780597848000,-651.11,0.00015342,2]
[424110455,1780597848000,-450.08,0.00015616,2]
[424110467,1780597848000,-651.11,0.00015616,2]
[424110508,1780597848000,-500.0,0.0001589,2]
[424110509,1780597848000,-787.9,0.0001589,2]
[424110514,1780597848000,-500.0,0.0001589,2]
[424110429,1780597848000,-500.0,0.00015342,2]
[424110457,1780597848000,-500.0,0.00015616,2]
[424110480,1780597848000,-500.0,0.00015616,2]
[424110479,1780597848000,-500.0,0.00015616,2]
[424110488,1780597848000,-500.0,0.0001589,2]
[424110491,1780597848000,-151.95,0.0001589,2]
[424110504,1780597848000,-1714.78,0.0001589,2]
[424110431,1780597848000,-500.0,0.00015342,2]
[424110476,1780597848000,-500.0,0.00015616,2]
[424110428,1780597848000,-500.0,0.00015342,2]
[424110481,1780597848000,-500.0,0.00015616,2]
[424110483,1780597848000,-151.41,0.000158,2]
[424110498,1780597848000,-500.0,0.0001589,2]
[424110423,1780597848000,-500.0,0.00015342,2]
[424110430,1780597848000,-500.0,0.00015342,2]
[424110435,1780597848000,-500.0,0.00015342,2]
[424110469,1780597848000,-500.0,0.00015616,2]
[424110474,1780597848000,-500.0,0.00015616,2]
[424110424,1780597848000,-536.69430737,0.00015342,2]
[424110425,1780597848000,-500.0,0.00015342,2]
[424110421,1780597848000,-3182.26,0.00015342,2]
[424110432,1780597848000,-1316.08,0.00015342,2]
[424110436,1780597848000,-500.0,0.00015342,2]
[424110458,1780597848000,-500.0,0.00015616,2]
[424110477,1780597848000,-500.0,0.00015616,2]
[424110412,1780597848000,-500.0,0.00015342,2]
[424110471,1780597848000,-537.68,0.00015616,2]
[424110415,1780597848000,-500.0,0.00015342,2]
[424110427,1780597848000,-1714.78,0.00015342,2]
[424110466,1780597848000,-500.0,0.00015616,2]
[424110460,1780597848000,-606.2,0.00015616,2]
[424110433,1780597848000,-500.0,0.00015342,2]
[424110439,1780597848000,-500.0,0.00015342,2]
[424110446,1780597848000,-500.0,0.00015616,2]
[424110470,1780597848000,-500.0,0.00015616,2]
[424110506,1780597848000,-500.0,0.0001589,2]
[424110410,1780597848000,-500.0,0.00015342,2]
[424110418,1780597848000,-606.2,0.00015342,2]
[424110417,1780597848000,-996.15,0.00015342,2]
[424110420,1780597848000,-500.0,0.00015342,2]
[424110451,1780597848000,-500.0,0.00015616,2]
[424110463,1780597848000,-3182.26,0.00015616,2]
[424110416,1780597848000,-500.0,0.00015342,2]
[424110475,1780597848000,-787.9,0.00015616,2]
[424110520,1780597848000,-339.24530496,0.00016128,2]
[424110519,1780597848000,-525.8965803,0.00016094,2]
[424110531,1780597848000,-500.0,0.00016164,2]
[424110530,1780597848000,-150.62395126,0.00016128,2]
[424110524,1780597848000,-170.74907828,0.00016128,2]
[424110521,1780597848000,-230.22736894,0.00016128,2]
[424110529,1780597848000,-159.1708513,0.00016128,2]
[424110525,1780597848000,-163.74981751,0.00016128,2]
[424110522,1780597848000,-175.98372861,0.00016128,2]
[424110523,1780597848000,-169.12212073,0.00016128,2]
[424110528,1780597848000,-150.21630887,0.00016128,2]
[424110526,1780597848000,-157.8450751,0.00016128,2]
[424110527,1780597848000,-166.33420218,0.00016128,2]
[424110414,1780597848000,-500.0,0.00015342,2]
[424110503,1780597848000,-651.11,0.0001589,2]
[424110407,1780597848000,-500.0,0.00015342,2]
[424110472,1780597848000,-500.0,0.00015616,2]
[424110511,1780597848000,-500.0,0.0001589,2]
[424110405,1780597848000,-500.0,0.00015342,2]
[424110440,1780597848000,-500.0,0.00015342,2]
[424110453,1780597848000,-500.0,0.00015616,2]
[424110462,1780597848000,-500.0,0.00015616,2]
[424110464,1780597848000,-944.64,0.00015616,2]
[424110495,1780597848000,-996.15,0.0001589,2]
[424110515,1780597848000,-500.0,0.0001589,2]
[424110516,1780597848000,-1196.37,0.0001589,2]
[424110441,1780597848000,-1196.37,0.00015342,2]
[424110454,1780597848000,-582.67304659,0.00015616,2]
[424110447,1780597848000,-500.0,0.00015616,2]
[424110450,1780597848000,-500.0,0.00015616,2]
[424110461,1780597848000,-500.0,0.00015616,2]
[424110492,1780597848000,-500.0,0.0001589,2]
[424110449,1780597848000,-500.0,0.00015616,2]
[424110496,1780597848000,-606.2,0.0001589,2]
[424110489,1780597848000,-500.0,0.0001589,2]
[424110502,1780597848000,-500.0,0.0001589,2]
[424110485,1780597848000,-361.07942581,0.0001589,2]
[424110452,1780597848000,-500.0,0.00015616,2]
[424110419,1780597848000,-500.0,0.00015342,2]
[424110422,1780597848000,-944.64,0.00015342,2]
[424110438,1780597848000,-500.0,0.00015342,2]
[424110403,1780597848000,-500.0,0.00015342,2]
[424110507,1780597848000,-1316.08,0.0001589,2]
[424110478,1780597848000,-500.0,0.00015616,2]
[424110445,1780597848000,-1428.20913596,0.000156,2]
[424110404,1780597848000,-500.0,0.00015342,2]
[424110402,1780597848000,-500.0,0.00015342,2]
[424110501,1780597848000,-500.0,0.0001589,2]
[424110568,1780597849000,-1196.37,0.00016164,2]
[424110570,1780597849000,-566.57713103,0.00016438,2]
[424110561,1780597849000,-787.9,0.00016164,2]
[424110559,1780597849000,-500.0,0.00016164,2]
[424110566,1780597849000,-500.0,0.00016164,2]
[424110562,1780597849000,-500.0,0.00016164,2]
[424110563,1780597849000,-303.44,0.00016164,2]
[424110567,1780597849000,-324.72,0.00016164,2]
[424110557,1780597849000,-1714.78,0.00016164,2]
[424110556,1780597849000,-651.11,0.00016164,2]
[424110576,1780597849000,-500.0,0.00016438,2]
[424110575,1780597849000,-500.0,0.00016438,2]
[424110574,1780597849000,-500.0,0.00016438,2]
[424110569,1780597849000,-500.0,0.00016438,2]
[424110573,1780597849000,-500.0,0.00016438,2]
[424110577,1780597849000,-996.15,0.00016438,2]
[424110571,1780597849000,-500.0,0.00016438,2]
[424110585,1780597849000,-171.47170919,0.00016438,2]
[424110578,1780597849000,-606.2,0.00016438,2]
[424110582,1780597849000,-500.0,0.00016438,2]
[424110583,1780597849000,-274.56657416,0.00016438,2]
[424110560,1780597849000,-1316.08,0.00016164,2]
[424110572,1780597849000,-500.0,0.00016438,2]
[424110558,1780597849000,-500.0,0.00016164,2]
[424110542,1780597849000,-500.0,0.00016164,2]
[424110564,1780597849000,-500.0,0.00016164,2]
[424110532,1780597849000,-291.61665467,0.00016164,2]
[424110533,1780597849000,-359.16,0.00012329,2]
[424110534,1780597849000,-500.0,0.00013698,2]
[424110536,1780597849000,-0.32450098,0.00013698,2]
[424110535,1780597849000,-140.84,0.00013698,2]
[424110537,1780597849000,-274.75369255,0.00013698,2]
[424110538,1780597849000,-500.0,0.00013698,2]
[424110539,1780597849000,-220.44475696,0.00013972,2]
[424110540,1780597849000,-475.7958965,0.00013972,2]
[424110584,1780597849000,-225.43342584,0.00016438,2]
[424110543,1780597849000,-500.0,0.00016164,2]
[424110541,1780597849000,-208.38334533,0.00016164,2]
[424110547,1780597849000,-500.0,0.00016164,2]
[424110544,1780597849000,-500.0,0.00016164,2]
[424110548,1780597849000,-500.0,0.00016164,2]
[424110553,1780597849000,-944.64,0.00016164,2]
[424110545,1780597849000,-534.72,0.00016164,2]
[424110549,1780597849000,-996.15,0.00016164,2]
[424110552,1780597849000,-3182.26,0.00016164,2]
[424110551,1780597849000,-500.0,0.00016164,2]
[424110550,1780597849000,-606.2,0.00016164,2]
[424110554,1780597849000,-500.0,0.00016164,2]
[424110555,1780597849000,-500.0,0.00016164,2]
[424110565,1780597849000,-500.0,0.00016164,2]
[424110586,1780597849000,-3252.4911388,0.00012205,2]
[424110546,1780597849000,-500.0,0.00016164,2]
[424110580,1780597849000,-3182.26,0.00016438,2]
[424110608,1780597849000,-500.0,0.00016712,2]
[424110610,1780597849000,-500.0,0.00016712,2]
[424110616,1780597849000,-3182.26,0.00016712,2]
[424110627,1780597849000,-500.0,0.00016712,2]
[424110626,1780597849000,-1316.08,0.00016712,2]
[424110617,1780597849000,-944.64,0.00016712,2]
[424110615,1780597849000,-500.0,0.00016712,2]
[424110620,1780597849000,-400.92203967,0.00016712,2]
[424110624,1780597849000,-500.0,0.00016712,2]
[424110623,1780597849000,-1714.78,0.00016712,2]
[424110635,1780597849000,-175.68728006,0.00016878,2]
[424110618,1780597849000,-500.0,0.00016712,2]
[424110621,1780597849000,-500.0,0.00014794,2]
[424110619,1780597849000,-500.0,0.00016712,2]
[424110625,1780597849000,-500.0,0.00016712,2]
[424110629,1780597849000,-500.0,0.00016712,2]
[424110628,1780597849000,-787.9,0.00016712,2]
[424110630,1780597849000,-269.98320771,0.00016712,2]
[424110632,1780597849000,-1196.37,0.00016712,2]
[424110634,1780597849000,-223.74494393,0.00016878,2]
[424110631,1780597849000,-500.0,0.00016712,2]
[424110633,1780597849000,-388.15292096,0.00016878,2]
[424110579,1780597849000,-500.0,0.00016438,2]
[424110602,1780597849000,-855.33870372,0.00016438,2]
[424110614,1780597849000,-606.2,0.00016712,2]
[424110622,1780597849000,-250.18796033,0.00016712,2]
[424110607,1780597849000,-151.41,0.000165,2]
[424110589,1780597849000,-500.0,0.00013972,2]
[424110590,1780597849000,-500.0,0.00014246,2]
[424110591,1780597849000,-500.0,0.0001452,2]
[424110588,1780597849000,-500.0,0.00013698,2]
[424110592,1780597849000,-479.63829081,0.00016438,2]
[424110599,1780597849000,-500.0,0.00016438,2]
[424110593,1780597849000,-1714.78,0.00016438,2]
[424110594,1780597849000,-500.0,0.00016438,2]
[424110596,1780597849000,-1316.08,0.00016438,2]
[424110598,1780597849000,-500.0,0.00016438,2]
[424110587,1780597849000,-500.0,0.00013698,2]
[424110600,1780597849000,-500.0,0.00016438,2]
[424110597,1780597849000,-787.9,0.00016438,2]
[424110595,1780597849000,-500.0,0.00016438,2]
[424110601,1780597849000,-500.0,0.00016438,2]
[424110604,1780597849000,-151.0,0.00016438,2]
[424110605,1780597849000,-160.664216,0.00016438,2]
[424110611,1780597849000,-500.0,0.00016712,2]
[424110613,1780597849000,-996.15,0.00016712,2]
[424110609,1780597849000,-500.0,0.00016712,2]
[424110612,1780597849000,-500.0,0.00016712,2]
[424110606,1780597849000,-153.85837,0.00016438,2]
[424110581,1780597849000,-944.64,0.00016438,2]
[424110603,1780597849000,-341.03129628,0.00016438,2]
[424110638,1780597911000,-4426.73538697,0.00013425,2]
[424110639,1780597928000,-190.05983482,0.00013561,2]
[424110641,1780597937000,800.93707747,0.00023248,120]
[424110656,1780598622000,156.0,0.00023207,120]
[424110722,1780599033000,-3614.14654064,0.00010931,2]
[424110795,1780599038000,-500.0,0.00013223,2]
[424110794,1780599038000,-556.040251,0.00013128,2]
[424110785,1780599038000,-207.85,0.00012329,2]
[424110787,1780599038000,-866.05,0.00012329,2]
[424110786,1780599038000,-173.21,0.00012329,2]
[424110791,1780599038000,-300.0,0.00013021,2]
[424110789,1780599038000,-300.0,0.00013021,2]
[424110788,1780599038000,-163.547988,0.00012492,2]
[424110781,1780599038000,-7366.2426719,0.00011883,2]
[424110790,1780599038000,-300.0,0.00013021,2]
[424110783,1780599038000,-299.3,0.00012329,2]
[424110782,1780599038000,-220.3520269,0.0001216,2]
[424110780,1780599038000,-5142.9803546,0.00011692,2]
[424110779,1780599038000,-152.0,0.00011148,7]
[424110778,1780599038000,-152.0,0.00011145,7]
[424110777,1780599038000,-152.0,0.00011128,7]
[424110775,1780599038000,-1385.85345936,0.00010931,2]
[424110776,1780599038000,-152.0,0.00011041,7]
[424110784,1780599038000,-249.42,0.00012329,2]
[424110797,1780599038000,-500.0,0.00013223,2]
[424110793,1780599038000,-300.0,0.00013021,2]
[424110798,1780599038000,-500.0,0.00013223,2]
[424110792,1780599038000,-300.0,0.00013021,2]
[424110816,1780599038000,-500.0,0.00013223,2]
[424110813,1780599038000,-500.0,0.00013223,2]
[424110809,1780599038000,-500.0,0.00013223,2]
[424110812,1780599038000,-500.0,0.00013223,2]
[424110810,1780599038000,-500.0,0.00013223,2]
[424110806,1780599038000,-500.0,0.00013223,2]
[424110808,1780599038000,-500.0,0.00013223,2]
[424110815,1780599038000,-500.0,0.00013223,2]
[424110811,1780599038000,-500.0,0.00013223,2]
[424110814,1780599038000,-500.0,0.00013223,2]
[424110804,1780599038000,-500.0,0.00013223,2]
[424110805,1780599038000,-500.0,0.00013223,2]
[424110801,1780599038000,-500.0,0.00013223,2]
[424110803,1780599038000,-500.0,0.00013223,2]
[424110802,1780599038000,-500.0,0.00013223,2]
[424110796,1780599038000,-336.30242085,0.00013223,2]
[424110800,1780599038000,-500.0,0.00013223,2]
[424110807,1780599038000,-500.0,0.00013223,2]
[424110799,1780599038000,-500.0,0.00013223,2]
[424110860,1780599039000,-623.88,0.00013698,2]
[424110859,1780599039000,-623.88,0.00013698,2]
[424110855,1780599039000,-623.88,0.00013698,2]
[424110853,1780599039000,-623.88,0.00013698,2]
[424110864,1780599039000,-623.88,0.00013698,2]
[424110851,1780599039000,-623.88,0.00013698,2]
[424110856,1780599039000,-623.88,0.00013698,2]
[424110854,1780599039000,-623.88,0.00013698,2]
[424110850,1780599039000,-623.88,0.00013698,2]
[424110849,1780599039000,-623.88,0.00013698,2]
[424110857,1780599039000,-623.88,0.00013698,2]
[424110863,1780599039000,-623.88,0.00013698,2]
[424110858,1780599039000,-623.88,0.00013698,2]
[424110878,1780599039000,-500.0,0.00013698,2]
[424110861,1780599039000,-623.88,0.00013698,2]
[424110862,1780599039000,-623.88,0.00013698,2]
[424110866,1780599039000,-623.88,0.00013698,2]
[424110868,1780599039000,-623.88,0.00013698,2]
[424110869,1780599039000,-623.89502807,0.00013698,2]
[424110870,1780599039000,-500.0,0.00013698,2]
[424110877,1780599039000,-500.0,0.00013698,2]
[424110867,1780599039000,-623.88,0.00013698,2]
[424110841,1780599039000,-43748.12847055,0.00013224,2]
[424110875,1780599039000,-500.0,0.00013698,2]
[424110873,1780599039000,-500.0,0.00013698,2]
[424110874,1780599039000,-500.0,0.00013698,2]
[424110871,1780599039000,-500.0,0.00013698,2]
[424110876,1780599039000,-1000.0,0.00013698,2]
[424110865,1780599039000,-623.88,0.00013698,2]
[424110847,1780599039000,-623.88,0.00013698,2]
[424110837,1780599039000,-500.0,0.00013223,2]
[424110852,1780599039000,-623.88,0.00013698,2]
[424110872,1780599039000,-500.0,0.00013698,2]
[424110818,1780599039000,-500.0,0.00013223,2]
[424110819,1780599039000,-500.0,0.00013223,2]
[424110820,1780599039000,-500.0,0.00013223,2]
[424110821,1780599039000,-351.10476926,0.00013223,2]
[424110824,1780599039000,-500.0,0.00013223,2]
[424110817,1780599039000,-352.03399322,0.00013223,2]
[424110828,1780599039000,-500.0,0.00013223,2]
[424110825,1780599039000,-500.0,0.00013223,2]
[424110827,1780599039000,-500.0,0.00013223,2]
[424110823,1780599039000,-500.0,0.00013223,2]
[424110822,1780599039000,-500.0,0.00013223,2]
[424110826,1780599039000,-500.0,0.00013223,2]
[424110830,1780599039000,-500.0,0.00013223,2]
[424110829,1780599039000,-475.20016792,0.00013223,2]
[424110831,1780599039000,-500.0,0.00013223,2]
[424110835,1780599039000,-500.0,0.00013223,2]
[424110836,1780599039000,-637.98991713,0.00013223,2]
[424110833,1780599039000,-500.0,0.00013223,2]
[424110832,1780599039000,-500.0,0.00013223,2]
[424110834,1780599039000,-500.0,0.00013223,2]
[424110838,1780599039000,-215.49260843,0.00013224,2]
[424110839,1780599039000,-100306.72607554,0.00013224,2]
[424110842,1780599039000,-247616.74147796,0.00013224,2]
[424110840,1780599039000,-35387.70465493,0.00013224,2]
[424110843,1780599039000,-33232.23225507,0.00013324,9]
[424110846,1780599039000,-623.88,0.00013698,2]
[424110844,1780599039000,-570.87990805,0.00013325,2]
[424110845,1780599039000,-556.040251,0.00013681,2]
[424110848,1780599039000,-623.88,0.00013698,2]
[424110880,1780599039000,-500.0,0.00013698,2]
[424110938,1780599039000,-500.0,0.00013698,2]
[424110890,1780599039000,-500.0,0.00013698,2]
[424110913,1780599039000,-1100.78,0.00013698,2]
[424110912,1780599039000,-500.0,0.00013698,2]
[424110915,1780599039000,-1100.78,0.00013698,2]
[424110918,1780599039000,-1100.78,0.00013698,2]
[424110923,1780599039000,-1100.78,0.00013698,2]
[424110921,1780599039000,-1100.78,0.00013698,2]
[424110920,1780599039000,-1100.78,0.00013698,2]
[424110922,1780599039000,-1100.78,0.00013698,2]
[424110926,1780599039000,-1100.78,0.00013698,2]
[424110925,1780599039000,-1100.78,0.00013698,2]
[424110927,1780599039000,-1100.78,0.00013698,2]
[424110928,1780599039000,-500.0,0.00013698,2]
[424110919,1780599039000,-1100.78,0.00013698,2]
[424110907,1780599039000,-500.0,0.00013698,2]
[424110929,1780599039000,-1100.78,0.00013698,2]
[424110932,1780599039000,-500.0,0.00013698,2]
[424110942,1780599039000,-500.0,0.00013698,2]
[424110945,1780599039000,-500.0,0.00013698,2]
[424110931,1780599039000,-1100.78,0.00013698,2]
[424110934,1780599039000,-1100.78,0.00013698,2]
[424110944,1780599039000,-500.0,0.00013698,2]
[424110939,1780599039000,-500.0,0.00013698,2]
[424110941,1780599039000,-500.0,0.00013698,2]
[424110940,1780599039000,-500.0,0.00013698,2]
[424110936,1780599039000,-1100.78,0.00013698,2]
[424110935,1780599039000,-1100.78,0.00013698,2]
[424110937,1780599039000,-1100.94103297,0.00013698,2]
[424110891,1780599039000,-500.0,0.00013698,2]
[424110930,1780599039000,-1100.78,0.00013698,2]
[424110908,1780599039000,-500.0,0.00013698,2]
[424110924,1780599039000,-1100.78,0.00013698,2]
[424110909,1780599039000,-1100.78,0.00013698,2]
[424110879,1780599039000,-500.0,0.00013698,2]